bitfinex/quotes_BTCUSD_20240717
["timestamp","ask_amount","ask_price","bid_price","bid_amount"]
[1721255282617,0.00833,64401.0,64400.0,2.03230155]
[1721255284144,0.00833,64401.0,64400.0,2.05530155]
[1721255284346,0.00833,64401.0,64400.0,2.05531395]
[1721255288362,0.00833,64401.0,64400.0,1.92071395]
[1721255289389,0.00833,64401.0,64400.0,1.97071395]
[1721255289852,0.00833,64401.0,64400.0,1.92071395]
[1721255290478,0.00833,64401.0,64400.0,1.83181276]
[1721255290684,0.00833,64401.0,64400.0,1.79179674]
[1721255290888,0.00833,64401.0,64400.0,1.92071277]
[1721255291296,0.00833,64401.0,64400.0,1.92071148]
[1721255292832,0.00833,64401.0,64400.0,1.39825248]
[1721255292961,0.15103,64401.0,64400.0,1.08769348]
[1721255293634,0.15103,64401.0,64400.0,1.08771462]
[1721255293841,0.15103,64401.0,64400.0,1.05971462]
[1721255294068,0.15103,64401.0,64400.0,1.08771462]
[1721255294406,0.15103,64401.0,64400.0,1.07371462]
[1721255295006,0.15103,64401.0,64400.0,1.05971462]
[1721255295237,0.15103,64401.0,64400.0,1.07371462]
[1721255295694,0.15103,64401.0,64400.0,0.29731762]
[1721255295928,0.15103,64401.0,64400.0,0.16838174]
[1721255296051,0.15103,64401.0,64400.0,0.18238174]
[1721255296254,0.306307,64401.0,64400.0,0.028]
[1721255296476,0.306307,64401.0,64400.0,0.014]
[1721255296477,0.99673008,64401.0,64400.0,0.014]
[1721255296726,0.19140901,64401.0,64400.0,0.169279]
[1721255296858,0.19140901,64401.0,64400.0,0.028]
[1721255296859,0.22029865,64401.0,64400.0,0.028]
[1721255297256,0.19188135,64401.0,64400.0,0.014]
[1721255297583,0.0646,64400.0,64397.0,0.155284]
[1721255297857,0.04616004,64399.0,64398.0,0.155283]
[1721255298055,0.0802,64399.0,64398.0,0.155283]
[1721255298319,0.0802,64399.0,64398.0,0.465851]
[1721255299001,0.0802,64399.0,64398.0,0.467851]
[1721255299172,0.0802,64399.0,64398.0,0.62223274]
[1721255299376,0.0802,64399.0,64398.0,1.32054353]
[1721255299531,0.01033,64401.0,64400.0,0.776397]
[1721255299744,0.01033,64401.0,64400.0,1.24133774]
[1721255300123,0.01033,64401.0,64400.0,1.61299674]
[1721255300322,0.00833,64401.0,64400.0,1.79192735]
[1721255300521,0.00833,64401.0,64400.0,2.18428635]
[1721255300722,0.00833,64401.0,64400.0,2.30728635]
[1721255301340,0.00833,64401.0,64400.0,2.31328635]
[1721255301721,0.00833,64401.0,64400.0,2.30728635]
[1721255301922,0.00833,64401.0,64400.0,2.32128635]
[1721255302068,0.00833,64401.0,64400.0,2.30728635]
[1721255302636,0.00833,64401.0,64400.0,2.30726065]
[1721255303318,0.00833,64401.0,64400.0,2.32026065]
[1721255303531,0.00833,64401.0,64400.0,2.33426065]
[1721255303729,0.00833,64401.0,64400.0,2.32126065]
[1721255303933,0.00833,64401.0,64400.0,2.30726065]
[1721255304129,0.00833,64401.0,64400.0,2.33526065]
[1721255304592,0.00833,64401.0,64400.0,2.20635574]
[1721255304792,0.00833,64401.0,64400.0,2.33526571]
[1721255305924,0.00833,64401.0,64400.0,2.20635574]
[1721255306098,0.00833,64401.0,64400.0,2.33526447]
[1721255307056,0.00833,64401.0,64400.0,2.39744247]
[1721255309114,0.00833,64401.0,64400.0,2.26853374]
[1721255309341,0.00833,64401.0,64400.0,2.39744195]
[1721255312072,0.00833,64401.0,64400.0,1.89398295]
[1721255312274,0.00833,64401.0,64400.0,1.76507474]
[1721255312504,0.00833,64401.0,64400.0,1.83180811]
[1721255312845,0.00833,64401.0,64400.0,2.33816711]
[1721255313051,0.00833,64401.0,64400.0,2.40034111]
[1721255313179,0.00833,64401.0,64400.0,3.90034111]
[1721255313630,0.00833,64401.0,64400.0,4.21090011]
[1721255313834,0.0145028,64413.0,64412.0,1.447254]
[1721255314051,0.00834,64426.0,64417.0,0.715715]
[1721255314257,0.00834,64426.0,64417.0,2.03043911]
[1721255314476,0.00834,64426.0,64417.0,2.05343911]
[1721255314885,0.00834,64426.0,64417.0,2.36391611]
[1721255315274,0.00834,64426.0,64417.0,2.23500474]
[1721255315488,0.00834,64426.0,64417.0,2.36388428]
[1721255316190,0.00834,64426.0,64417.0,2.37788428]
[1721255316547,0.00834,64426.0,64417.0,2.36388428]
[1721255316888,0.00834,64426.0,64417.0,2.39188428]
[1721255317979,0.00834,64426.0,64417.0,2.44308428]
[1721255318184,0.00834,64426.0,64417.0,2.53508428]
[1721255318438,0.00834,64426.0,64417.0,2.53508293]
[1721255318588,0.00834,64426.0,64417.0,2.48508293]
[1721255318794,0.00834,64426.0,64417.0,2.53508209]
[1721255318993,0.00834,64426.0,64417.0,2.47108209]
[1721255319231,0.00834,64426.0,64417.0,2.53508209]
[1721255319622,0.00834,64426.0,64417.0,2.52108209]
[1721255319781,0.00834,64426.0,64417.0,2.53508209]
[1721255320222,0.00834,64426.0,64417.0,2.52108209]
[1721255320427,0.00834,64426.0,64417.0,2.53508209]
[1721255320637,0.00834,64426.0,64417.0,2.50708209]
[1721255321009,0.00834,64426.0,64417.0,2.52108209]
[1721255321437,0.00834,64426.0,64417.0,2.81755909]
[1721255321694,0.00834,64426.0,64417.0,2.83155909]
[1721255322340,0.00834,64426.0,64417.0,2.81755909]
[1721255322651,0.00834,64426.0,64417.0,2.83155909]
[1721255322835,0.00834,64426.0,64417.0,2.84555909]
[1721255323161,0.00834,64426.0,64417.0,2.83155909]
[1721255323332,0.00834,64426.0,64417.0,2.84555909]
[1721255324336,0.00834,64426.0,64417.0,2.83155909]
[1721255324538,0.00834,64426.0,64417.0,2.70268174]
[1721255324744,0.00834,64426.0,64417.0,2.84555133]
[1721255325119,0.00834,64426.0,64417.0,3.04005133]
[1721255325320,0.00834,64426.0,64417.0,3.05405133]
[1721255325551,0.00834,64426.0,64417.0,3.06805133]
[1721255327802,0.00834,64426.0,64417.0,3.0680442]
[1721255328158,0.00834,64426.0,64417.0,2.91118174]
[1721255328366,0.00834,64426.0,64417.0,3.04004382]
[1721255328576,0.00834,64435.0,64434.0,0.2]
[1721255328801,0.00834,64435.0,64434.0,1.29432695]
[1721255329164,0.00834,64435.0,64434.0,1.65472195]
[1721255329374,0.00834,64435.0,64434.0,2.58590695]
[1721255330049,0.00834,64435.0,64434.0,2.54990695]
[1721255330473,0.00834,64435.0,64434.0,2.59990695]
[1721255330850,0.00834,64435.0,64434.0,2.59990218]
[1721255331083,0.00834,64435.0,64434.0,2.61390218]
[1721255331554,0.00834,64435.0,64434.0,2.59990218]
[1721255331712,0.00834,64435.0,64434.0,2.61390218]
[1721255331918,0.00834,64435.0,64434.0,2.67730218]
[1721255332316,0.00834,64435.0,64434.0,2.62730218]
[1721255332539,0.00834,64435.0,64434.0,2.67730218]
[1721255333881,0.00834,64435.0,64434.0,2.43505374]
[1721255334085,0.00834,64435.0,64434.0,2.61390218]
[1721255334523,0.00834,64435.0,64434.0,2.58590218]
[1721255334757,0.00834,64435.0,64434.0,2.59990218]
[1721255334927,0.00834,64435.0,64434.0,2.61390218]
[1721255335226,0.00834,64435.0,64434.0,2.59990218]
[1721255335728,0.00834,64435.0,64434.0,2.39140218]
[1721255335955,0.00834,64435.0,64434.0,2.61390218]
[1721255336089,0.00834,64435.0,64434.0,2.56390218]
[1721255336475,0.00834,64435.0,64434.0,2.30350718]
[1721255336884,0.00834,64435.0,64434.0,2.12465874]
[1721255337091,0.00834,64435.0,64434.0,2.30350718]
[1721255338410,0.00834,64435.0,64434.0,2.61390218]
[1721255340307,0.00834,64435.0,64434.0,2.48020218]
[1721255340501,0.00834,64435.0,64434.0,2.16980718]
[1721255341106,0.00834,64435.0,64434.0,2.48020218]
[1721255341525,0.00834,64435.0,64434.0,2.16980718]
[1721255341724,0.00834,64435.0,64434.0,2.48020218]
[1721255342338,0.00834,64435.0,64434.0,2.35135374]
[1721255342535,0.00834,64435.0,64434.0,2.48020218]
[1721255344442,0.00834,64435.0,64434.0,2.16980718]
[1721255345020,0.14944,64435.0,64434.0,1.80800718]
[1721255345225,0.14944,64435.0,64434.0,1.89680718]
[1721255345547,0.14944,64435.0,64434.0,1.76795874]
[1721255345696,0.14944,64435.0,64434.0,1.89681196]
[1721255346021,0.14944,64435.0,64434.0,1.76795874]
[1721255346157,0.14944,64435.0,64434.0,1.89681196]
[1721255346362,0.14944,64435.0,64434.0,1.91981196]
[1721255347804,0.00834,64435.0,64434.0,1.91981196]
[1721255348423,0.00834,64435.0,64434.0,2.16981196]
[1721255348722,0.00834,64435.0,64434.0,2.16980671]
[1721255351042,0.00834,64435.0,64434.0,2.17814671]
[1721255351448,0.07334,64435.0,64434.0,2.03934671]
[1721255351648,0.14914,64435.0,64434.0,2.12814671]
[1721255351852,0.14914,64435.0,64434.0,2.12814605]
[1721255353141,0.00834,64435.0,64434.0,2.17814605]
[1721255353360,0.00834,64435.0,64434.0,2.12814605]
[1721255353561,0.00834,64435.0,64434.0,2.3466833]
[1721255353793,0.00834,64435.0,64434.0,2.17814605]
[1721255354780,0.00834,64435.0,64434.0,2.34693342]
[1721255356205,0.00834,64435.0,64434.0,2.49403342]
[1721255358082,0.00834,64435.0,64434.0,2.19639874]
[1721255358303,0.00834,64435.0,64434.0,2.62706649]
[1721255358500,0.06332,64444.0,64434.0,2.62706649]
[1721255358707,0.06332,64444.0,64443.0,1.24060974]
[1721255358950,0.06332,64444.0,64443.0,1.36945669]
[1721255359977,0.06332,64444.0,64443.0,1.38345669]
[1721255360460,0.06332,64444.0,64443.0,1.39745669]
[1721255362767,0.06332,64444.0,64443.0,1.73080769]
[1721255363290,0.0665,64446.0,64445.0,1.086197]
[1721255363518,0.0665,64446.0,64445.0,1.36942569]
[1721255364240,0.0665,64446.0,64445.0,1.24057874]
[1721255364463,0.0665,64446.0,64445.0,1.38342569]
[1721255366137,0.0665,64446.0,64445.0,1.39742569]
[1721255367702,0.0665,64446.0,64445.0,1.39742568]
[1721255367982,0.00834,64447.0,64446.0,1.086179]
[1721255368192,0.00834,64447.0,64446.0,1.80274468]
[1721255368407,0.00834,64447.0,64446.0,2.0215835]
[1721255368598,0.00834,64447.0,64446.0,2.38518168]
[1721255369533,0.00834,64447.0,64446.0,2.39918168]
[1721255369978,0.00834,64447.0,64446.0,2.38518168]
[1721255370181,0.00834,64447.0,64446.0,2.41318168]
[1721255370594,0.00834,64447.0,64446.0,2.39918168]
[1721255371102,0.00834,64447.0,64446.0,2.86141868]
[1721255371328,0.00833,64451.0,64450.0,2.094649]
[1721255371546,0.00833,64451.0,64450.0,2.50087768]
[1721255372812,0.00833,64451.0,64450.0,2.51487768]
[1721255373754,0.00833,64451.0,64450.0,2.52883865]
[1721255374160,0.00833,64451.0,64450.0,2.40003074]
[1721255374357,0.00833,64451.0,64450.0,2.52883865]
[1721255375582,0.00833,64451.0,64450.0,2.56491535]
[1721255375784,0.00833,64451.0,64450.0,2.75093865]
[1721255377125,0.00833,64451.0,64450.0,2.75093827]
[1721255378618,0.00833,64451.0,64450.0,2.83915627]
[1721255379437,0.00833,64451.0,64450.0,2.82515627]
[1721255379839,0.00833,64451.0,64450.0,2.83915627]
[1721255380057,0.00833,64451.0,64450.0,2.83914682]
[1721255380258,0.00833,64451.0,64450.0,2.91394682]
[1721255380795,0.00833,64451.0,64450.0,2.92794682]
[1721255381217,0.00833,64451.0,64450.0,2.07001082]
[1721255381400,0.00833,64451.0,64450.0,2.14641082]
[1721255382405,0.00833,64451.0,64450.0,2.27961082]
[1721255383229,0.00833,64451.0,64450.0,2.30261602]
[1721255384056,0.08743,64451.0,64450.0,2.25261602]
[1721255384256,0.08743,64451.0,64450.0,2.03061602]
[1721255384257,0.14923,64451.0,64450.0,2.03061602]
[1721255384826,0.08743,64451.0,64450.0,2.03061602]
[1721255385033,0.00833,64451.0,64450.0,2.30261602]
[1721255386301,0.00833,64451.0,64450.0,2.30262313]
[1721255389093,0.00833,64451.0,64450.0,2.25262313]
[1721255389284,0.00833,64451.0,64450.0,2.12381274]
[1721255389490,0.00833,64451.0,64450.0,2.0526239]
[1721255389688,0.00833,64451.0,64450.0,1.8306239]
[1721255389888,0.15263,64451.0,64450.0,1.8076239]
[1721255392154,0.15263,64451.0,64450.0,1.7076239]
[1721255392354,0.15263,64451.0,64450.0,1.57881274]
[1721255392765,0.15263,64451.0,64450.0,1.26849474]
[1721255392998,0.15263,64451.0,64450.0,1.25449474]
[1721255393368,0.15263,64451.0,64450.0,1.26849474]
[1721255393591,0.15263,64451.0,64450.0,1.25449474]
[1721255393826,0.15263,64451.0,64450.0,1.24049474]
[1721255394192,0.15263,64451.0,64450.0,1.26449474]
[1721255394523,0.15263,64451.0,64450.0,1.25049474]
[1721255394983,0.15263,64451.0,64450.0,1.26049474]
[1721255395536,0.15263,64451.0,64450.0,0.95017674]
[1721255396179,0.15263,64451.0,64450.0,0.02]
[1721255396595,0.15263,64451.0,64450.0,0.175159]
[1721255397145,0.15263,64451.0,64450.0,0.02]
[1721255397350,0.15263,64451.0,64450.0,0.175159]
[1721255398098,0.15263,64451.0,64450.0,0.02]
[1721255400567,0.307786,64451.0,64450.0,0.02]
[1721255400767,0.618099,64451.0,64450.0,0.02]
[1721255400984,0.928412,64451.0,64450.0,0.02]
[1721255401189,0.618099,64451.0,64450.0,0.02]
[1721255401663,0.618099,64451.0,64450.0,0.01]
[1721255402079,0.618099,64451.0,64450.0,0.013]
[1721255402605,0.618099,64451.0,64450.0,0.003]
[1721255402804,0.618099,64451.0,64450.0,0.006]
[1721255403299,0.307786,64451.0,64450.0,0.006]
[1721255403690,1.238725,64451.0,64450.0,0.006]
[1721255404044,1.30805954,64451.0,64450.0,0.006]
[1721255404268,1.7768451,64451.0,64450.0,0.006]
[1721255404464,1.7768451,64451.0,64447.0,0.000913]
[1721255404465,0.956317,64448.0,64447.0,0.000913]
[1721255404821,1.27891918,64448.0,64447.0,0.000913]
[1721255405038,1.37891918,64448.0,64447.0,0.000913]
[1721255405241,0.75826518,64448.0,64447.0,0.000913]
[1721255405442,0.7652621,64448.0,64447.0,0.000913]
[1721255405597,1.0755891,64448.0,64447.0,0.000913]
[1721255406029,1.15743055,64448.0,64447.0,0.000913]
[1721255406223,1.006317,64448.0,64447.0,0.000913]
[1721255406442,1.06493347,64448.0,64447.0,0.000913]
[1721255406639,1.06693347,64448.0,64447.0,0.001913]
[1721255406864,1.42526047,64448.0,64447.0,0.000913]
[1721255407067,1.37526047,64448.0,64447.0,0.000913]
[1721255407184,0.155199,64433.0,64432.0,0.002794]
[1721255407386,0.0787,64431.0,64428.0,0.158005]
[1721255407585,0.0787,64431.0,64429.0,0.15438174]
[1721255408258,0.233905,64431.0,64429.0,0.15438174]
[1721255408414,0.077,64430.0,64429.0,0.15438174]
[1721255408618,0.310385,64437.0,64426.0,0.000913]
[1721255408619,0.310381,64437.0,64426.0,0.000913]
[1721255408861,0.1384,64428.0,64426.0,0.000913]
[1721255409233,0.0635,64427.0,64426.0,0.000913]
[1721255409438,0.294314,64427.0,64426.0,0.000913]
[1721255410278,0.1391,64427.0,64426.0,0.000913]
[1721255410487,0.1391,64427.0,64426.0,0.31051074]
[1721255410687,0.1391,64427.0,64426.0,0.62094374]
[1721255410893,0.91517,64427.0,64426.0,0.000913]
[1721255411172,0.294314,64427.0,64426.0,0.000913]
[1721255411399,0.294314,64427.0,64426.0,0.15529474]
[1721255411400,0.1391,64427.0,64426.0,0.15529474]
[1721255411853,0.1391,64427.0,64426.0,0.005913]
[1721255412235,0.604742,64427.0,64426.0,0.005913]
[1721255412441,0.605742,64427.0,64426.0,0.011913]
[1721255412760,0.1401,64427.0,64426.0,0.011913]
[1721255412973,0.1401,64427.0,64426.0,0.16629474]
[1721255417360,0.605742,64427.0,64426.0,0.011913]
[1721255417761,0.91617,64427.0,64426.0,0.011913]
[1721255422026,1.226598,64427.0,64426.0,0.011913]
[1721255422251,1.448598,64427.0,64426.0,0.011913]
[1721255422390,1.612198,64427.0,64426.0,0.011913]
[1721255422596,1.712198,64427.0,64426.0,0.006913]
[1721255422812,1.762198,64427.0,64426.0,0.006913]
[1721255423013,1.768198,64427.0,64426.0,0.006913]
[1721255423426,1.768198,64427.0,64426.0,0.000913]
[1721255423427,1.767198,64427.0,64426.0,0.000913]
[1721255423655,1.780198,64427.0,64426.0,0.002913]
[1721255423864,1.717198,64427.0,64426.0,0.001913]
[1721255424288,1.711198,64427.0,64426.0,0.000913]
[1721255424537,1.325598,64427.0,64426.0,0.000913]
[1721255425281,1.341598,64427.0,64426.0,0.002913]
[1721255427761,1.03117,64427.0,64426.0,0.002913]
[1721255430270,1.341598,64427.0,64426.0,0.002913]
[1721255430898,1.03117,64427.0,64426.0,0.002913]
[1721255431868,1.341598,64427.0,64426.0,0.002913]
[1721255432555,1.03117,64427.0,64426.0,0.002913]
[1721255432829,1.341598,64427.0,64426.0,0.002913]
[1721255434382,1.03117,64427.0,64426.0,0.002913]
[1721255436152,1.341598,64427.0,64426.0,0.002913]
[1721255437346,1.6084555,64427.0,64426.0,0.002913]
[1721255437552,1.63889082,64427.0,64426.0,0.002913]
[1721255437754,1.58889082,64427.0,64426.0,0.002913]
[1721255438188,1.42529082,64427.0,64426.0,0.002913]
[1721255438758,0.016,64427.0,64426.0,0.002913]
[1721255438958,0.016,64427.0,64426.0,0.158129]
[1721255439175,0.016,64427.0,64426.0,0.002913]
[1721255439379,0.171214,64427.0,64426.0,0.002913]
[1721255439582,0.016,64427.0,64426.0,0.002913]
[1721255439894,0.016,64427.0,64426.0,0.001913]
[1721255439895,0.009,64427.0,64426.0,0.001913]
[1721255440230,0.009,64427.0,64426.0,0.156129]
[1721255440231,0.003,64427.0,64426.0,0.156129]
[1721255440415,0.005,64427.0,64426.0,0.156129]
[1721255445509,0.005,64427.0,64426.0,0.000913]
[1721255446361,0.470642,64427.0,64426.0,0.000913]
[1721255446537,0.92887,64427.0,64426.0,0.000913]
[1721255446735,1.239298,64427.0,64426.0,0.000913]
[1721255446971,1.32268707,64427.0,64426.0,0.000913]
[1721255447171,1.45999128,64427.0,64426.0,0.000913]
[1721255447373,1.4830948,64427.0,64426.0,0.000913]
[1721255448195,1.26970863,64427.0,64426.0,0.000913]
[1721255448387,2.14593459,64427.0,64426.0,0.000913]
[1721255448568,1.84373663,64427.0,64426.0,0.000913]
[1721255448720,1.93996207,64427.0,64426.0,0.000913]
[1721255449330,1.60472249,64427.0,64426.0,0.000913]
[1721255449538,1.15550607,64427.0,64426.0,0.000913]
[1721255451369,1.15527359,64427.0,64426.0,0.000913]
[1721255451948,1.29413325,64427.0,64426.0,0.000913]
[1721255452354,1.40013713,64427.0,64426.0,0.000913]
[1721255452752,1.42476995,64427.0,64426.0,0.000913]
[1721255453173,1.73519795,64427.0,64426.0,0.000913]
[1721255453879,2.25000769,64427.0,64426.0,0.000913]
[1721255454577,2.30182615,64427.0,64426.0,0.000913]
[1721255454762,2.4416545,64427.0,64426.0,0.000913]
[1721255454897,2.3916545,64427.0,64426.0,0.000913]
[1721255455095,2.29820823,64427.0,64426.0,0.000913]
[1721255455295,2.43374515,64427.0,64426.0,0.000913]
[1721255455544,2.39274618,64427.0,64426.0,0.001913]
[1721255455753,2.45174618,64427.0,64426.0,0.002913]
[1721255455953,2.44274618,64427.0,64426.0,0.001913]
[1721255456597,1.81169644,64427.0,64426.0,0.001913]
[1721255456774,1.73815849,64427.0,64426.0,0.002913]
[1721255457616,1.74531173,64427.0,64426.0,0.002913]
[1721255458040,1.55130863,64427.0,64426.0,0.002913]
[1721255458249,1.96688062,64427.0,64426.0,0.002913]
[1721255458457,2.12326291,64427.0,64426.0,0.002913]
[1721255458883,1.96688062,64427.0,64426.0,0.002913]
[1721255460583,1.77330863,64427.0,64426.0,0.002913]
[1721255460805,1.96399716,64427.0,64426.0,0.002913]
[1721255462127,1.65259716,64427.0,64426.0,0.002913]
[1721255462330,1.12016916,64427.0,64426.0,0.002913]
[1721255462899,0.81899355,64427.0,64426.0,0.002913]
[1721255463090,0.71899355,64427.0,64426.0,0.002913]
[1721255463292,0.75285826,64427.0,64426.0,0.002913]
[1721255464330,0.85285826,64427.0,64426.0,0.002913]
[1721255465711,0.32135402,64427.0,64426.0,0.002913]
[1721255465895,0.06614002,64427.0,64426.0,0.158129]
[1721255466142,0.023,64427.0,64426.0,0.528762]
[1721255466557,0.11591158,64427.0,64426.0,0.526762]
[1721255466761,0.04763219,64427.0,64426.0,0.526762]
[1721255466891,0.07063219,64427.0,64426.0,0.528762]
[1721255467093,0.07063219,64427.0,64426.0,0.527762]
[1721255467311,0.12490904,64427.0,64426.0,0.526762]
[1721255467514,0.06063219,64427.0,64426.0,0.526762]
[1721255467716,0.06063219,64427.0,64426.0,0.607262]
[1721255468095,0.15335365,64427.0,64426.0,0.607262]
[1721255468748,0.14035365,64427.0,64426.0,0.607262]
[1721255468949,0.09272146,64427.0,64426.0,0.607262]
[1721255469186,0.09472146,64427.0,64426.0,0.607262]
[1721255469643,0.09572146,64427.0,64426.0,0.607262]
[1721255469817,0.14335365,64427.0,64426.0,0.607262]
[1721255470015,0.14235365,64427.0,64426.0,0.607262]
[1721255470521,0.14335365,64427.0,64426.0,0.607262]
[1721255471515,0.14335365,64427.0,64426.0,0.296829]
[1721255473315,0.05063219,64427.0,64426.0,0.296829]
[1721255473550,0.51627419,64427.0,64426.0,0.000913]
[1721255473944,0.82670219,64427.0,64426.0,0.000913]
[1721255474471,1.13713019,64427.0,64426.0,0.000913]
[1721255474680,1.78035203,64427.0,64426.0,0.000913]
[1721255474879,1.78035203,64427.0,64411.0,0.002794]
[1721255474880,0.05,64425.0,64411.0,0.002794]
[1721255475087,0.09268693,64414.0,64409.0,0.155256]
[1721255475324,0.155245,64414.0,64411.0,0.0609]
[1721255475521,0.29105091,64414.0,64411.0,0.0609]
[1721255475954,0.28946975,64414.0,64411.0,0.0609]
[1721255476145,0.28946975,64414.0,64411.0,0.371401]
[1721255476146,0.13422475,64414.0,64411.0,0.371401]
[1721255476344,0.13422475,64414.0,64413.0,0.156161]
[1721255476345,0.15007139,64414.0,64413.0,0.156161]
[1721255476500,0.11584664,64414.0,64413.0,0.000913]
[1721255476720,0.15007139,64414.0,64413.0,0.000913]
[1721255476920,0.15007139,64414.0,64413.0,0.001913]
[1721255477577,0.03422475,64414.0,64413.0,0.001913]
[1721255477786,0.03422475,64414.0,64413.0,0.002913]
[1721255477989,0.15007139,64414.0,64413.0,0.002913]
[1721255478207,0.15007139,64414.0,64413.0,0.001913]
[1721255478384,0.15007139,64414.0,64413.0,0.002913]
[1721255478586,0.14984911,64414.0,64413.0,0.002913]
[1721255478951,0.03401067,64414.0,64413.0,0.002913]
[1721255479216,0.11583844,64415.0,64413.0,0.002913]
[1721255479643,0.155238,64417.0,64413.0,0.002913]
[1721255479644,0.14984911,64414.0,64413.0,0.002913]
[1721255479848,0.03401067,64414.0,64413.0,0.002913]
[1721255479967,0.11583844,64415.0,64413.0,0.002913]
[1721255480165,0.11583844,64415.0,64413.0,0.001913]
[1721255480957,0.14984911,64414.0,64413.0,0.001913]
[1721255481160,0.03401067,64414.0,64413.0,0.001913]
[1721255481366,0.03401067,64414.0,64413.0,0.000913]
[1721255481590,0.03417348,64414.0,64413.0,0.000913]
[1721255481808,0.89130048,64414.0,64413.0,0.000913]
[1721255482016,1.81024801,64414.0,64413.0,0.000913]
[1721255482220,2.36445692,64414.0,64413.0,0.000913]
[1721255482425,2.45321166,64414.0,64413.0,0.000913]
[1721255482626,2.31421513,64414.0,64413.0,0.000913]
[1721255482826,2.39990069,64414.0,64413.0,0.00178742]
[1721255483051,2.49314069,64414.0,64413.0,0.00178742]
[1721255483229,2.40745513,64414.0,64413.0,0.00178742]
[1721255483562,2.40745513,64414.0,64413.0,0.00078742]
[1721255483941,2.34428034,64414.0,64413.0,0.00178742]
[1721255484501,2.23206402,64414.0,64413.0,0.00278742]
[1721255484704,2.34045909,64414.0,64413.0,0.00278742]
[1721255484936,2.33982626,64414.0,64413.0,0.00278742]
[1721255485420,2.28865952,64414.0,64413.0,0.00278742]
[1721255485636,2.34004351,64414.0,64413.0,0.00278742]
[1721255486288,0.05,64397.0,64392.0,0.002794]
[1721255486492,0.05,64397.0,64391.0,0.000913]
[1721255486493,0.155298,64392.0,64391.0,0.000913]
[1721255486623,1.03851311,64392.0,64391.0,0.000913]
[1721255486829,1.13851311,64392.0,64391.0,0.000913]
[1721255487036,1.1079714,64392.0,64391.0,0.000913]
[1721255487244,1.05716312,64392.0,64391.0,0.000913]
[1721255487463,1.36776012,64392.0,64391.0,0.000913]
[1721255487675,1.350689,64392.0,64391.0,0.000913]
[1721255487892,1.36775068,64392.0,64391.0,0.000913]
[1721255488124,1.48724712,64392.0,64391.0,0.000913]
[1721255488306,1.37175068,64392.0,64391.0,0.000913]
[1721255488548,1.48724712,64392.0,64391.0,0.000913]
[1721255489129,1.46410787,64392.0,64391.0,0.000913]
[1721255489326,1.51610787,64392.0,64391.0,0.000913]
[1721255489501,1.52813242,64392.0,64391.0,0.000913]
[1721255489701,1.64362886,64392.0,64391.0,0.000913]
[1721255490179,1.62045287,64392.0,64391.0,0.000913]
[1721255490914,1.62043161,64392.0,64391.0,0.000913]
[1721255491196,1.51107074,64392.0,64391.0,0.000913]
[1721255491423,0.882492,64392.0,64391.0,0.000913]
[1721255491792,1.193089,64392.0,64391.0,0.000913]
[1721255492429,0.882492,64392.0,64391.0,0.000913]
[1721255493398,0.92861313,64392.0,64391.0,0.000913]
[1721255493980,0.92861562,64392.0,64391.0,0.000913]
[1721255494183,0.882492,64392.0,64391.0,0.000913]
[1721255496123,0.006,64392.0,64391.0,0.143313]
[1721255497061,0.004,64392.0,64391.0,0.143313]
[1721255498582,0.004,64392.0,64391.0,0.143313]
[1721255498807,0.255297,64393.0,64391.0,0.143313]
[1721255499219,0.001,64392.0,64391.0,0.143313]
[1721255499615,0.255297,64393.0,64391.0,0.143313]
[1721255500045,0.102,64393.0,64391.0,0.298613]
[1721255500248,0.002,64392.0,64391.0,0.143313]
[1721255500496,0.002,64393.0,64391.0,0.143313]
[1721255500884,0.005,64393.0,64391.0,0.143313]
[1721255501207,0.002,64393.0,64391.0,0.143313]
[1721255501416,0.1,64394.0,64391.0,0.143313]
[1721255501543,0.002,64392.0,64391.0,0.143313]
[1721255502466,0.003,64392.0,64391.0,0.609216]
[1721255502850,0.003,64392.0,64391.0,0.919818]
[1721255503412,0.001,64392.0,64391.0,1.07419974]
[1721255504365,0.001,64392.0,64391.0,1.07719974]
[1721255504702,0.1,64401.0,64397.0,0.155286]
[1721255505230,0.1636,64410.0,64407.0,0.0604]
[1721255505231,0.155255,64410.0,64407.0,0.0604]
[1721255505435,0.155255,64410.0,64407.0,0.136]
[1721255505964,0.310502,64412.0,64407.0,0.0604]
[1721255506309,0.155258,64409.0,64407.0,0.0604]
[1721255507263,0.155258,64409.0,64407.0,0.0614]
[1721255507465,0.1,64408.0,64407.0,0.0604]
[1721255507911,0.1,64408.0,64407.0,0.0614]
[1721255508061,0.1,64408.0,64407.0,0.216662]
[1721255508261,0.01,64409.0,64408.0,0.15526]
[1721255508706,0.01,64409.0,64408.0,0.46578]
[1721255509114,0.01,64409.0,64408.0,0.9151]
[1721255510173,0.255238,64417.0,64412.0,0.155248]
[1721255510779,0.155246,64414.0,64408.0,0.44932]
[1721255510986,0.255249,64413.0,64408.0,0.1388]
[1721255511209,0.255249,64413.0,64408.0,0.295059]
[1721255511591,0.255249,64413.0,64408.0,0.296059]
[1721255511791,0.255249,64413.0,64412.0,0.001]
[1721255512191,0.255249,64413.0,64408.0,0.294059]
[1721255512564,0.107,64413.0,64410.0,0.155253]
[1721255512742,0.007,64413.0,64408.0,0.294058]
[1721255512971,0.004,64413.0,64408.0,0.294058]
[1721255513163,0.007,64413.0,64408.0,0.294058]
[1721255513701,0.16225,64413.0,64409.0,0.155257]
[1721255513908,0.15825,64413.0,64409.0,0.155257]
[1721255514142,0.16225,64413.0,64409.0,0.155257]
[1721255514344,0.15925,64413.0,64409.0,0.155257]
[1721255514775,0.16625,64413.0,64409.0,0.155257]
[1721255514916,0.15825,64413.0,64409.0,0.155257]
[1721255515120,0.15525,64413.0,64409.0,0.155257]
[1721255515324,0.15925,64413.0,64409.0,0.155257]
[1721255515522,0.007,64413.0,64410.0,0.155254]
[1721255515747,0.107,64413.0,64410.0,0.155254]
[1721255516321,0.259249,64413.0,64408.0,0.294059]